bitfinex/quotes_ETHUSD_20250827
["timestamp","ask_amount","ask_price","bid_price","bid_amount"]
[1756302520958,2.15754503,4634.9,4634.0,2.15795461]
[1756302521127,0.02076892,4634.8,4633.9,1.659]
[1756302521320,0.66,4635.2,4634.0,7.03294704]
[1756302521653,0.02076892,4635.1,4634.1,4.876]
[1756302521819,2.1574973,4635.0,4634.1,4.876]
[1756302522020,0.02076892,4634.9,4634.1,4.876]
[1756302522220,0.108,4634.2,4634.1,2.81341631]
[1756302522539,0.108,4634.2,4634.1,2.58801631]
[1756302522744,0.108,4634.2,4634.1,7.45601631]
[1756302522918,0.108,4634.6,4634.5,2.15769133]
[1756302523254,0.108,4634.6,4634.5,7.02369133]
[1756302523423,0.108,4634.6,4634.5,4.863]
[1756302523826,0.108,4634.6,4634.5,4.858]
[1756302524220,0.108,4634.6,4633.9,1.659]
[1756302524448,0.66,4635.3,4634.3,2.15779416]
[1756302524755,0.02076892,4635.2,4634.1,2.15791631]
[1756302525062,2.15721875,4635.6,4634.7,2.15761929]
[1756302525351,0.108,4634.1,4634.0,2.15796288]
[1756302525560,0.108,4634.1,4634.0,5.2731]
[1756302525856,0.108,4634.1,4634.0,7.43106288]
[1756302526226,0.108,4634.1,4634.0,2.58806288]
[1756302526432,0.108,4634.1,4634.0,7.42306288]
[1756302526636,0.02076892,4635.8,4634.6,2.15766965]
[1756302526832,0.108,4634.9,4634.8,2.1575904]
[1756302527031,0.108,4634.9,4634.8,2.5876904]
[1756302527232,0.66,4634.5,4630.1,2.15974077]
[1756302527484,2.15847525,4632.9,4632.8,0.0044]
[1756302527640,0.66,4632.3,4629.6,1.66]
[1756302527849,5.81894125,4631.9,4631.8,0.0044]
[1756302528161,2.15940745,4630.9,4629.6,1.66]
[1756302528466,2.15940745,4630.9,4629.3,0.001]
[1756302528467,6.84017637,4630.9,4629.3,0.001]
[1756302528631,0.4164,4631.8,4629.3,0.001]
[1756302528834,2.81940745,4630.9,4629.7,2.15995097]
[1756302529037,2.15915284,4631.5,4629.3,0.001]
[1756302529038,0.02076892,4631.0,4630.1,0.4301]
[1756302529274,0.02076892,4631.4,4630.6,2.15953161]
[1756302529476,3.0,4632.1,4630.9,0.4301]
[1756302529677,0.66,4631.9,4630.3,0.001]
[1756302529840,0.66,4630.9,4630.3,0.001]
[1756302530045,0.02076892,4631.2,4630.3,0.001]
[1756302530466,0.68076892,4631.2,4630.3,0.001]
[1756302530769,0.02076892,4631.2,4630.3,0.001]
[1756302530994,0.2203833,4631.3,4630.3,0.001]
[1756302531200,0.02076892,4631.3,4630.3,0.001]
[1756302531348,0.02076892,4632.0,4630.9,0.452]
[1756302531678,0.22020772,4632.3,4631.4,2.15914728]
[1756302531877,0.02076892,4632.3,4631.4,2.15916591]
[1756302532056,0.22016339,4632.8,4631.0,1.66]
[1756302532252,2.15891825,4632.0,4631.0,6.556]
[1756302532447,2.15900295,4631.8,4631.0,6.556]
[1756302532645,2.1589777,4631.9,4631.0,1.66]
[1756302532851,2.17952757,4632.3,4631.1,2.1593142]
[1756302533063,0.02,4632.8,4631.2,0.47359267]
[1756302533382,0.02,4632.8,4631.2,0.452]
[1756302533544,0.02076892,4632.7,4631.3,4.885]
[1756302533751,2.1793465,4632.7,4631.7,2.1590292]
[1756302533954,0.02076892,4632.7,4631.7,2.15902138]
[1756302534289,2.15861503,4632.6,4631.6,2.15907622]
[1756302534594,0.02,4632.8,4631.7,0.452]
[1756302534955,0.02,4632.8,4632.6,2.15857784]
[1756302535288,0.02,4632.8,4632.3,1.66]
[1756302535491,0.68076892,4632.7,4631.5,6.534]
[1756302535667,0.66,4632.5,4631.5,1.66]
[1756302535867,2.15908182,4631.6,4630.8,6.293]
[1756302536064,0.02076892,4631.5,4630.8,0.021]
[1756302536278,2.15917137,4631.5,4630.8,0.021]
[1756302536464,3.0,4632.3,4630.8,0.021]
[1756302536465,2.15922095,4631.3,4630.8,0.021]
[1756302536794,2.84005442,4631.2,4630.8,0.021]
[1756302536960,2.15936021,4631.1,4630.8,0.021]
[1756302537312,2.26740745,4630.9,4630.8,0.021]
[1756302537896,0.108,4630.9,4630.8,0.473]
[1756302538093,0.108,4630.9,4630.8,2.63245409]
[1756302538251,0.108,4630.9,4630.8,0.021]
[1756302539355,2.26740745,4630.9,4630.8,0.021]
[1756302539766,0.12876892,4630.9,4630.3,0.001]
[1756302539970,0.108,4630.4,4630.3,0.001]
[1756302540188,2.28840955,4630.4,4630.3,0.001]
[1756302540387,5.94840955,4630.4,4630.3,0.001]
[1756302540555,2.81987386,4629.9,4629.8,0.021]
[1756302540752,2.84064278,4629.9,4629.8,0.021]
[1756302540954,3.34887268,4629.9,4629.8,0.021]
[1756302541186,2.16034046,4628.9,4627.8,2.133]
[1756302541396,2.16022078,4629.2,4627.8,2.133]
[1756302541715,0.108,4628.9,4628.2,2.16063593]
[1756302541919,0.108,4628.9,4628.1,2.16071218]
[1756302542080,5.94830938,4628.9,4627.8,0.02]
[1756302542402,6.74460098,4628.9,4627.8,0.02]
[1756302542706,6.54088206,4628.9,4627.8,0.02]
[1756302543494,11.36188206,4628.9,4627.8,0.02]
[1756302543900,6.54088206,4628.9,4627.8,0.02]
[1756302544096,11.35488206,4628.9,4627.8,0.02]
[1756302544508,11.35488206,4628.9,4628.3,0.001]
[1756302544867,0.40066052,4628.9,4628.3,2.16158993]
[1756302545072,0.02076892,4629.2,4628.8,0.473]
[1756302545267,0.42041692,4630.0,4628.9,0.452]
[1756302545475,0.42041692,4630.0,4628.8,0.021]
[1756302545476,0.19982424,4629.9,4628.8,0.021]
[1756302545675,2.16005379,4629.6,4628.8,0.021]
[1756302545878,5.3806192,4629.5,4628.8,0.021]
[1756302546077,0.19977972,4629.4,4628.8,0.021]
[1756302546304,2.1602605,4629.1,4628.8,0.021]
[1756302546507,0.68076892,4629.0,4628.8,0.021]
[1756302546836,2.16015858,4629.3,4628.8,0.021]
[1756302546972,0.02076892,4629.5,4628.9,0.452]
[1756302547173,1.70176892,4630.8,4628.9,0.452]
[1756302547371,2.15971625,4630.3,4628.9,0.452]
[1756302547580,0.02076892,4630.2,4628.9,0.452]
[1756302547806,0.42031748,4630.7,4628.9,0.452]
[1756302548009,2.1598741,4629.9,4629.0,2.16029379]
[1756302548216,0.68076892,4629.8,4628.9,0.452]
[1756302548410,0.68076892,4629.8,4629.2,2.16019261]
[1756302548615,0.02076892,4630.2,4628.9,0.452]
[1756302548775,0.39992392,4630.4,4629.0,0.47360293]
[1756302548979,0.02,4630.8,4629.1,0.21556029]
[1756302549199,0.02,4630.8,4630.0,2.15980511]
[1756302549399,0.02,4630.8,4629.9,0.452]
[1756302549601,0.02,4630.8,4630.7,2.15950072]
[1756302549775,0.02,4630.8,4629.9,2.113]
[1756302549989,0.02,4630.8,4630.7,2.15950072]
[1756302550379,0.02,4630.8,4630.7,2.61150072]
[1756302550611,0.02,4630.8,4630.7,5.61150072]
[1756302550781,0.04,4631.8,4631.7,2.15903447]
[1756302551183,0.02,4632.8,4632.7,2.15856843]
[1756302551596,0.02,4632.8,4632.7,2.61056843]
[1756302552206,0.02,4632.8,4632.4,1.661]
[1756302552385,0.02,4632.8,4632.7,2.15856843]
[1756302552576,0.02,4632.8,4631.8,3.0]
[1756302552577,0.02,4632.8,4631.5,1.661]
[1756302552773,2.1587102,4632.4,4631.5,2.15912517]
[1756302552973,2.1587102,4632.4,4631.4,0.452]
[1756302552974,2.15880143,4632.2,4631.4,0.452]
[1756302553185,2.15880143,4632.2,4631.2,2.15922124]
[1756302553186,0.108,4631.5,4631.2,2.15922124]
[1756302553405,0.108,4631.5,4631.1,1.661]
[1756302553714,0.108,4631.2,4631.1,1.661]
[1756302553901,0.108,4631.2,4631.1,2.113]
[1756302554097,2.15861823,4632.6,4631.7,2.15901399]
[1756302554296,0.4015763,4632.5,4631.1,6.872]
[1756302554499,0.108,4631.6,4631.3,3.0]
[1756302554678,0.02,4632.8,4631.4,0.452]
[1756302554882,0.108,4632.6,4632.2,2.15879612]
[1756302555082,0.02,4632.8,4632.1,1.661]
[1756302555281,0.108,4632.2,4632.0,2.15888687]
[1756302555578,0.24153353,4632.8,4631.7,1.661]
[1756302555775,0.108,4632.0,4631.9,2.15894125]
[1756302555978,0.108,4632.0,4631.9,2.61094125]
[1756302556613,0.108,4632.0,4631.3,0.108]
[1756302556614,0.108,4632.0,4631.1,0.452]
[1756302556789,0.108,4632.0,4631.2,6.418]
[1756302556989,0.2006936,4632.4,4631.9,2.15892516]
[1756302557312,2.15869037,4632.5,4631.2,1.661]
[1756302557526,0.108,4631.7,4631.6,2.15908109]
[1756302557691,0.86069899,4632.3,4631.8,0.02]
[1756302557896,0.66,4632.3,4631.8,0.02]
[1756302558293,0.21785265,4632.7,4631.8,0.02]
[1756302558614,0.66,4632.5,4631.8,0.02]
[1756302558801,0.108,4631.9,4631.8,2.17898786]
[1756302559006,0.108,4631.9,4631.8,0.02]
[1756302559225,0.108,4631.9,4631.8,2.17898786]
[1756302559583,0.108,4631.9,4631.8,2.63098786]
[1756302560208,0.108,4631.9,4631.8,0.02]
[1756302560419,0.108,4631.9,4631.8,2.17898786]
[1756302561418,0.108,4631.9,4631.8,0.02]
[1756302561419,0.768,4631.9,4631.8,0.02]
[1756302561592,0.66,4631.9,4631.8,0.02]
[1756302562119,0.02,4632.8,4631.8,4.764]
[1756302562299,0.02,4632.8,4632.7,2.15856843]
[1756302563006,0.002,4632.0,4631.9,2.15894125]
[1756302563207,0.002,4632.0,4631.9,2.60984125]
[1756302563721,0.002,4632.0,4631.9,5.60984125]
[1756302563918,0.002,4632.0,4631.9,10.35284125]
[1756302564086,0.002,4632.0,4631.9,2.60984125]
[1756302564286,0.002,4632.0,4631.9,6.90194125]
[1756302564487,0.002,4632.0,4631.8,4.743]
[1756302565088,0.002,4632.0,4631.6,1.662]
[1756302565426,0.002,4632.0,4631.6,3.821064]
[1756302565724,0.002,4632.0,4631.6,3.82107654]
[1756302565887,0.002,4632.0,4631.7,2.15903447]
[1756302566088,0.002,4632.0,4631.7,4.743]
[1756302566695,0.002,4632.0,4631.9,2.15894125]
[1756302566900,0.0012,4632.0,4631.9,2.15894125]
[1756302567205,0.0012,4632.0,4631.9,2.60984125]
[1756302567729,0.0012,4632.0,4631.7,4.743]
[1756302567932,0.0012,4632.0,4631.9,2.15894125]
[1756302568940,0.0012,4632.0,4631.9,4.742]
[1756302569136,0.0012,4632.0,4631.6,1.662]
[1756302569338,0.0012,4632.0,4631.8,4.742]
[1756302569538,0.0012,4632.0,4631.7,4.742]
[1756302569907,0.0012,4632.0,4631.8,4.742]
[1756302570843,2.16009789,4632.0,4631.6,1.662]
[1756302571012,0.66,4631.7,4631.6,0.001]
[1756302571197,2.83980339,4631.7,4631.6,0.001]
[1756302571598,3.39710339,4631.7,4631.6,0.001]
[1756302571803,6.39710339,4631.7,4631.6,0.001]
[1756302572041,7.21642351,4631.7,4631.6,0.001]
[1756302573043,7.21642351,4631.7,4631.6,1e-08]
[1756302573234,9.83150264,4631.7,4631.6,1e-08]
[1756302573542,4.43640745,4630.9,4630.8,1e-08]
[1756302573749,5.82034046,4628.9,4628.8,0.021]
[1756302574040,6.12936386,4628.9,4628.8,0.021]
[1756302574242,6.33043834,4628.9,4628.8,0.021]
[1756302574442,6.7691969,4628.9,4628.8,0.021]
[1756302575851,0.66,4628.4,4626.8,0.02]
[1756302576010,0.66,4627.3,4626.8,0.02]
[1756302576343,5.82127428,4626.9,4626.8,0.02]
[1756302576644,6.43938195,4626.9,4626.8,0.02]
[1756302576842,4.06209788,4626.9,4626.8,0.02]
[1756302577047,3.8610234,4626.9,4626.8,0.02]
[1756302577240,5.82127428,4626.9,4626.8,0.02]
[1756302578026,1.661,4627.9,4626.8,0.02]
[1756302578229,0.02076892,4628.8,4626.9,0.02161274]
[1756302578411,0.02076892,4628.8,4626.8,2.1319]
[1756302578412,0.17684239,4628.7,4626.8,2.1319]
[1756302578616,2.16058632,4628.4,4627.2,2.1610983]
[1756302578845,0.02076892,4628.3,4627.2,2.1610983]
[1756302579046,2.18139232,4628.3,4626.8,2.1319]
[1756302579251,0.02076892,4628.3,4627.4,2.16099634]
[1756302579543,0.02076892,4628.6,4627.5,0.47250994]
[1756302579754,0.22079927,4629.5,4627.7,2.16085715]
[1756302580102,0.22079927,4629.5,4627.7,1.662]
[1756302580103,0.649815,4629.3,4627.7,1.662]
[1756302580276,0.02076892,4629.4,4627.8,5.1919]
[1756302580566,2.15996716,4629.7,4628.8,0.02]
[1756302580757,2.16010582,4629.5,4628.8,0.02]
[1756302580936,0.02076892,4629.5,4628.9,2.16034046]
[1756302581131,0.02076892,4629.7,4628.8,0.02]
[1756302581435,0.66,4629.3,4628.8,0.02]
[1756302581772,0.02076892,4629.4,4628.8,0.02]
[1756302581954,2.16020772,4629.2,4628.8,0.02]
[1756302582161,0.02076892,4629.4,4628.8,0.02]
[1756302582468,5.20070671,4629.8,4628.9,2.16033665]
[1756302582775,0.02,4629.8,4629.0,0.4509]
[1756302583270,0.66,4629.7,4628.8,0.02]
[1756302583437,0.02076892,4629.6,4628.8,0.02]
[1756302583638,0.66,4629.4,4628.8,0.02]
[1756302583865,2.82011349,4629.4,4628.8,0.02]
[1756302584067,0.02,4629.8,4628.8,0.4709]
[1756302584233,0.02,4629.8,4629.1,2.16020331]
[1756302584434,0.02,4629.8,4628.8,0.4709]
[1756302584751,0.02,4629.8,4629.2,2.16019815]
[1756302584958,0.02,4629.8,4628.8,0.4709]
[1756302585130,0.02076892,4629.7,4628.8,0.02]
[1756302585333,0.66,4629.7,4628.8,0.02]
[1756302585567,2.81997871,4629.7,4628.9,0.4509]
[1756302585772,2.92834046,4628.9,4628.8,0.02]
[1756302585939,0.768,4628.9,4628.8,0.02]
[1756302586139,2.92834046,4628.9,4628.8,0.02]
[1756302586349,0.78876892,4628.9,4628.8,0.02]
[1756302586552,2.94910938,4628.9,4628.8,0.02]
[1756302586956,0.768,4628.9,4628.8,0.02]
[1756302587202,0.108,4628.9,4628.8,0.4709]
[1756302587382,0.108,4628.9,4628.8,2.63128714]
[1756302587906,0.02,4629.8,4628.8,0.4709]
[1756302588184,0.02,4629.8,4629.6,2.16001054]
[1756302588555,0.02,4629.8,4629.2,2.61108291]
[1756302588751,0.02,4629.8,4629.2,0.4509]
[1756302588992,0.108,4629.3,4629.2,2.6110748]
[1756302589388,0.108,4629.3,4629.2,2.87218228]
[1756302589686,0.02,4629.8,4629.7,2.15996716]
[1756302590188,0.128,4629.8,4629.7,2.59706716]
[1756302590665,0.02,4629.8,4629.7,2.59706716]
[1756302591179,0.0192,4629.8,4629.7,3.27137804]
[1756302591356,0.0192,4629.8,4629.7,3.24977837]
[1756302592268,0.0192,4629.8,4629.7,3.27137804]
[1756302592467,0.0192,4629.8,4629.7,3.24977837]
[1756302592669,0.0192,4629.8,4629.7,7.33206716]
[1756302593066,0.0192,4629.8,4629.4,1.662]
[1756302593286,0.0192,4629.8,4629.7,2.15996716]
[1756302593486,0.0192,4629.8,4629.7,6.89396716]
[1756302593691,0.0192,4629.8,4629.7,7.33106716]
[1756302593900,0.0192,4629.8,4629.7,2.15996716]
[1756302594894,0.1272,4629.8,4629.7,2.15996716]
[1756302595112,0.1272,4629.8,4629.7,2.59706716]
[1756302595113,0.0192,4629.8,4629.7,2.59706716]
[1756302596759,0.0192,4629.8,4629.7,3.23897895]
[1756302597389,0.0192,4629.8,4629.7,2.59706716]
[1756302598267,0.0192,4629.8,4629.7,2.61866683]
[1756302598780,0.02,4630.8,4630.7,2.15950072]
[1756302599086,0.002,4631.7,4631.4,2.15915057]
[1756302599293,0.002,4631.7,4631.6,2.26708109]
[1756302599462,0.002,4631.7,4631.6,8.65708109]
[1756302599862,0.002,4631.7,4631.6,9.09418109]
[1756302600194,0.002,4631.7,4631.6,4.36518109]
[1756302600360,0.002,4631.7,4631.6,9.09318109]
[1756302600792,0.002,4631.7,4631.6,10.41041426]
[1756302601188,0.002,4631.7,4631.6,10.51841426]
[1756302601402,0.002,4631.7,4631.6,5.79041426]
[1756302601603,0.002,4631.7,4631.6,4.727]
[1756302601899,0.002,4631.7,4631.6,7.32318109]
[1756302602109,0.002,4631.7,4631.6,10.43118109]
[1756302602572,0.002,4631.7,4631.6,5.70418109]
[1756302602771,0.002,4631.7,4631.6,10.42918109]
[1756302603417,0.002,4631.7,4631.6,11.68801266]
[1756302603901,0.002,4631.7,4631.6,11.68701266]
[1756302604208,0.002,4631.7,4631.6,6.96301266]
[1756302604368,0.002,4631.7,4631.6,5.26708109]
[1756302604707,0.002,4631.7,4631.6,6.88308109]
[1756302604868,0.002,4631.7,4631.6,2.15908109]
[1756302605066,0.002,4631.7,4631.6,6.88208109]
[1756302605877,0.002,4631.7,4631.6,2.15908109]
[1756302606083,0.002,4631.7,4631.6,6.88108109]
[1756302606281,0.002,4631.7,4630.9,1.769]
[1756302606608,0.002,4631.7,4631.5,2.15908799]
[1756302606771,0.108,4631.2,4630.9,1.661]
[1756302607104,0.108,4631.2,4630.9,2.15938612]
[1756302607315,0.108,4631.2,4631.0,4.721]
[1756302607607,0.002,4631.7,4631.0,5.1581]
[1756302607790,0.108,4631.2,4631.1,4.72]
[1756302607997,0.002,4631.7,4631.1,6.8793142]
[1756302608194,0.002,4631.7,4631.4,2.15917398]
[1756302608393,0.002,4631.7,4631.6,2.15908109]
[1756302608704,0.11,4631.7,4631.6,2.15908109]
[1756302608912,0.11,4631.7,4631.6,6.87908109]
[1756302609122,0.11,4631.7,4631.6,6.87808109]
[1756302610218,0.11,4631.7,4631.6,2.15908109]
[1756302610417,0.11,4631.7,4631.6,4.718]
[1756302610722,0.11,4631.7,4631.5,3.82012689]
[1756302610723,0.11,4631.7,4631.5,1.661]
[1756302610919,0.11,4631.7,4631.6,4.718]
[1756302611124,0.11,4631.7,4631.5,1.661]
[1756302611422,0.11,4631.7,4631.6,7.31318109]
[1756302611423,0.002,4631.7,4631.6,7.31318109]
[1756302612188,0.02,4631.8,4631.7,2.15903447]
[1756302612382,0.02,4631.8,4631.7,6.87503447]
[1756302612582,0.02,4631.8,4631.7,9.87503447]
[1756302612782,0.02,4631.8,4631.7,10.7612358]
[1756302613182,0.02,4631.8,4631.7,10.8692358]
[1756302614211,0.02,4631.8,4631.7,6.1532358]
[1756302614411,0.02,4631.8,4631.7,9.87303447]
[1756302614710,0.02,4631.8,4631.7,5.70413447]
[1756302614919,0.02,4631.8,4631.7,9.87303447]
[1756302615132,0.02,4631.8,4631.7,2.15903447]
[1756302615282,0.02,4631.8,4631.7,6.87203447]
[1756302615283,0.128,4631.8,4631.7,6.87203447]
[1756302615488,0.0192,4631.8,4631.7,8.37834603]
[1756302615708,0.0192,4631.8,4631.7,11.37834603]
[1756302616322,1e-08,4632.2,4631.8,3.0]
[1756302616534,1e-08,4632.2,4631.9,0.02158941]
[1756302616741,0.002,4634.1,4632.6,2.15861503]
[1756302616742,1e-08,4632.7,4632.6,2.15861503]
[1756302616900,0.002,4634.1,4633.7,2.15810259]
[1756302617095,0.002,4634.1,4633.7,3.81910259]
[1756302617336,0.002,4634.1,4633.7,8.55168361]
[1756302617546,0.11,4634.1,4633.7,3.81910259]
[1756302617749,0.11,4634.1,4633.7,8.52910259]
[1756302618054,0.002,4634.1,4633.7,8.52910259]
[1756302618837,0.128,4633.8,4633.7,8.52910259]
[1756302619338,0.02,4633.8,4633.7,8.52910259]
[1756302619503,0.02,4633.8,4633.7,9.59783004]
[1756302620034,0.02,4633.8,4633.7,13.03883004]
[1756302620035,1e-08,4633.8,4633.7,13.03883004]
[1756302620601,1e-08,4634.1,4634.0,2.15796288]
[1756302620835,1e-08,4634.1,4634.0,9.86496288]
[1756302621004,1e-08,4634.1,4634.0,11.82533528]
[1756302621429,1e-08,4634.6,4634.5,2.15773006]
[1756302621627,1e-08,4634.8,4634.7,2.15763695]
[1756302621833,1e-08,4634.8,4634.7,11.52263695]
[1756302622034,1e-08,4634.8,4634.7,6.81763695]
[1756302622236,1e-08,4634.8,4634.7,9.86263695]
[1756302622532,1e-08,4634.8,4634.7,6.86263695]
[1756302623240,0.00200001,4634.8,4634.7,6.86263695]
[1756302623402,0.44960001,4634.8,4634.4,3.0]
[1756302623608,0.44960001,4634.8,4634.5,4.703]
[1756302623820,0.44960001,4634.8,4634.6,2.15768142]
[1756302624039,0.00200001,4634.8,4634.7,4.703]
[1756302624542,0.00200001,4634.8,4634.7,6.86063695]
[1756302624707,0.00200001,4634.8,4634.6,2.15768151]
[1756302624902,0.00200001,4634.8,4634.7,4.702]
[1756302625506,0.00200001,4634.8,4634.7,6.85963695]
[1756302625949,0.00200001,4634.8,4634.7,4.7]
[1756302626962,0.00200001,4634.8,4634.7,6.85763695]
[1756302627106,0.00200001,4634.8,4634.7,10.75917335]
[1756302627303,0.00200001,4634.8,4634.7,11.20017335]
[1756302627840,0.00200001,4634.8,4634.7,10.75917335]
[1756302628529,0.00200001,4634.8,4634.7,9.85763695]
[1756302628722,0.00200001,4634.8,4634.7,9.85463695]
[1756302629539,0.13300001,4634.8,4634.7,4.697]
[1756302629845,0.00200001,4634.8,4634.7,6.85463695]
[1756302630006,0.00200001,4634.8,4634.7,4.697]
[1756302630340,0.00200001,4634.8,4634.7,6.85463695]
[1756302630706,0.11000001,4634.8,4634.7,6.85463695]
[1756302630910,0.28930001,4634.8,4634.7,6.85263695]
[1756302631154,0.28930001,4634.8,4634.7,4.695]
[1756302631445,0.00200001,4634.8,4634.7,6.85263695]
[1756302632452,0.00200001,4634.8,4634.7,4.695]
[1756302632663,0.13300001,4634.8,4634.7,4.695]
[1756302632851,0.00200001,4634.8,4634.7,4.695]
[1756302633021,0.13300001,4634.8,4634.7,4.695]
[1756302633456,0.13300001,4634.8,4634.7,6.85263695]
[1756302633618,0.00200001,4634.8,4634.7,6.85263695]
[1756302634153,0.28930001,4634.8,4634.7,6.85263695]
[1756302634519,0.28930001,4634.8,4634.7,4.689]
[1756302634749,0.00200001,4634.8,4634.7,7.15963695]
[1756302634955,0.002,4635.1,4635.0,2.1574973]
[1756302635251,0.002,4635.1,4635.0,6.86807227]
[1756302635454,0.002,4635.1,4635.0,7.6004973]
[1756302635661,0.02,4636.8,4636.7,2.15670627]
[1756302635844,0.02,4636.8,4636.7,8.50470627]
[1756302636668,0.02,4636.8,4636.7,11.50470627]
[1756302636818,0.02,4636.8,4636.7,11.94570627]
[1756302637530,0.002,4637.5,4637.4,2.15638073]
[1756302637951,0.002,4637.5,4637.4,6.84138073]
[1756302639758,0.002,4637.5,4636.4,0.441]
[1756302639964,0.135,4637.5,4637.2,2.15643147]
[1756302640182,0.1342,4637.5,4637.3,6.83842061]
[1756302640370,0.1342,4637.5,4635.8,1.659]
[1756302640371,1.12526892,4637.4,4635.8,1.659]
[1756302640583,0.31300132,4637.3,4636.3,2.15685013]
[1756302640875,0.02076892,4637.2,4636.1,2.15694568]
[1756302641026,0.66,4636.9,4636.2,4.681]
[1756302641227,2.81671738,4636.7,4636.2,4.681]
[1756302641432,0.4476,4636.6,4635.8,1.659]
[1756302641634,0.86054167,4636.5,4635.8,1.659]
[1756302641834,2.15693887,4636.2,4635.9,4.679]
[1756302642034,0.66,4636.3,4635.9,4.679]
[1756302642035,0.2005417,4636.1,4635.9,4.679]
[1756302642349,0.66,4637.0,4635.9,4.679]
[1756302642685,0.20065574,4636.9,4636.1,2.15696593]
[1756302642837,0.20065574,4636.9,4636.2,6.83493838]
[1756302643033,0.20065574,4636.9,4636.2,4.678]
[1756302643234,0.0012,4637.5,4636.4,2.15684582]
[1756302643542,0.0012,4637.5,4637.4,2.15638073]
[1756302643761,0.0012,4637.5,4637.4,6.83338073]
[1756302644338,0.0012,4637.5,4637.4,8.33926394]
[1756302644758,0.0012,4637.5,4637.4,7.89826394]
[1756302645033,0.0012,4637.5,4637.4,4.675]
[1756302645240,0.0012,4637.5,4637.2,1.659]
[1756302645468,0.0012,4637.5,4637.4,4.675]
[1756302645860,0.1092,4637.5,4637.4,6.83138073]
[1756302646171,0.1092,4637.5,4637.2,1.659]
[1756302646371,0.20080377,4637.4,4637.3,4.673]
[1756302646580,0.64840377,4637.4,4637.3,4.673]
[1756302646877,0.66,4637.3,4637.2,6.332]
[1756302647042,0.86080377,4637.3,4637.2,6.332]
[1756302647646,0.20080377,4637.3,4637.2,4.673]
[1756302647953,0.30880377,4637.3,4636.8,0.02]
[1756302648159,0.20080377,4637.2,4636.9,4.671]
[1756302648358,0.20080377,4637.1,4636.9,4.671]
[1756302648690,0.20080377,4637.0,4636.9,6.82761325]
[1756302648842,0.0012,4637.5,4637.4,2.15638073]
[1756302649044,0.0012,4637.5,4637.4,6.82638073]
[1756302649245,0.1092,4637.5,4637.4,7.26738073]
[1756302649745,0.1092,4637.5,4637.4,6.82638073]
[1756302650741,0.0012,4637.5,4637.4,7.27078073]
[1756302650942,0.0012,4637.5,4637.4,6.82338073]
[1756302651141,0.1092,4637.5,4637.4,6.82338073]
[1756302651648,0.02,4637.8,4637.7,2.15624124]
[1756302651842,0.02,4637.8,4637.7,11.61080365]
[1756302651843,1e-08,4637.8,4637.7,11.61080365]
[1756302652049,1e-08,4637.8,4637.7,12.03364124]
[1756302652352,1e-08,4638.0,4637.9,2.15614825]
[1756302652558,1e-08,4638.0,4637.9,6.59668868]
[1756302652761,1e-08,4638.0,4637.9,7.0195272]
[1756302653658,1e-08,4638.0,4637.9,11.6825272]
[1756302656863,1e-08,4638.0,4637.9,11.9929272]
[1756302657558,1e-08,4638.0,4637.9,9.81314825]
[1756302657761,1e-08,4638.0,4637.4,0.16099955]
[1756302658000,0.2265,4637.8,4637.7,2.15624124]
[1756302658305,0.108,4637.8,4637.7,6.81124124]
[1756302658511,1e-08,4638.0,4637.9,2.15614825]
[1756302658862,0.10800001,4638.0,4637.9,2.15614825]
[1756302659598,0.22650001,4638.0,4637.8,0.02]
[1756302659767,0.22650001,4638.0,4637.9,6.81114825]
[1756302659768,0.10800001,4638.0,4637.9,6.81114825]
[1756302659957,0.10800001,4638.0,4637.9,2.15614825]
[1756302660159,0.66,4637.9,4637.8,0.02]
[1756302660359,3.17210612,4637.9,4637.8,0.0154]
[1756302660567,3.74683936,4637.9,4637.8,0.0154]
[1756302660770,3.74683936,4637.9,4637.8,0.0127]
[1756302661067,2.81638073,4637.4,4637.3,0.001]
[1756302661269,6.03785746,4637.4,4637.3,0.001]
[1756302661474,6.47948477,4637.4,4637.3,0.001]
[1756302661682,2.81684582,4636.4,4636.2,0.16547949]
[1756302661878,3.03841878,4636.4,4634.6,1.659]
[1756302662081,6.50071878,4636.4,4634.6,1.659]
[1756302662405,3.66,4636.3,4634.6,0.001]
[1756302662612,4.31471532,4635.3,4634.6,0.001]
[1756302662936,2.15786975,4634.2,4633.2,1.679]
[1756302663067,0.20080404,4634.2,4633.3,0.02158288]
[1756302663408,1.658,4635.2,4633.9,3.947]
[1756302663409,0.66,4635.0,4633.9,3.947]
[1756302663592,0.20083716,4634.9,4633.9,3.947]
[1756302663783,0.88160608,4634.8,4633.7,4.648]
[1756302663987,2.81786975,4634.2,4633.0,1.658]
[1756302664316,0.86083716,4634.2,4633.5,4.648]
[1756302664474,0.20003716,4634.2,4633.5,4.648]
[1756302664669,0.02076892,4634.8,4634.0,2.15791988]
[1756302664903,0.66,4634.7,4633.8,2.15801433]
[1756302665105,0.02076892,4634.6,4633.5,4.648]
[1756302665282,2.61968253,4635.3,4633.5,4.648]
[1756302665587,0.68076892,4635.2,4633.5,4.648]
[1756302665786,0.66,4634.2,4633.5,4.646]
[1756302666115,0.66,4634.4,4633.5,4.646]
[1756302666404,3.28016975,4634.2,4633.1,4.646]
[1756302666578,3.28016975,4634.2,4633.0,1.658]
[1756302666783,2.81786975,4634.2,4633.0,1.658]
[1756302666992,2.83863867,4634.2,4633.1,2.15834008]
[1756302667192,0.68076892,4634.2,4633.4,2.15823935]